[Event "Late-Titled-Tuesday-Blitz-May-28-2024"]
[Site "Chess.com"]
[Date "2024.05.28"]
[Round "1"]
[White "GMG"]
[Black "Romadk"]
[Result "1-0"]
[WhiteElo "2821"]
[BlackElo "2458"]
[TimeControl "180+1"]
[EndTime "14:07:17 PDT"]
[Termination "GMG won by checkmate"]

1. Nf3 {[%clk 0:03:00.9]} 1... d5 {[%clk 0:02:59.6]} 2. g3 {[%clk 0:03:00.8]}
2... Nd7 {[%clk 0:02:59.6]} 3. d4 {[%clk 0:03:00]} 3... Nb6 {[%clk 0:02:58.2]}
4. a4 {[%clk 0:03:00.5]} 4... a5 {[%clk 0:02:57.9]} 5. Nc3 {[%clk 0:03:00.9]}
5... Nf6 {[%clk 0:02:57.6]} 6. Bg2 {[%clk 0:02:47.7]} 6... Bf5 {[%clk
0:02:57.1]} 7. Nh4 {[%clk 0:02:47.6]} 7... Bg4 {[%clk 0:02:54.5]} 8. h3 {[%clk
0:02:47.5]} 8... Bh5 {[%clk 0:02:52.9]} 9. g4 {[%clk 0:02:40.2]} 9... Bg6 {[%clk
0:02:52.1]} 10. Nxg6 {[%clk 0:02:39.3]} 10... hxg6 {[%clk 0:02:53]} 11. g5
{[%clk 0:02:39.3]} 11... Ng8 {[%clk 0:02:29.4]} 12. e4 {[%clk 0:02:36.4]} 12...
e6 {[%clk 0:01:57.5]} 13. exd5 {[%clk 0:02:32.4]} 13... Nxd5 {[%clk 0:01:52.8]}
14. Nxd5 {[%clk 0:02:26.6]} 14... exd5 {[%clk 0:01:52.6]} 15. Qe2+ {[%clk
0:02:27.2]} 15... Ne7 {[%clk 0:01:26.1]} 16. Qb5+ {[%clk 0:02:20.3]} 16... c6
{[%clk 0:01:24.9]} 17. Qxb7 {[%clk 0:02:18.1]} 17... Rb8 {[%clk 0:01:16.7]} 18.
Qa6 {[%clk 0:02:16.3]} 18... Qc7 {[%clk 0:01:10.9]} 19. O-O {[%clk 0:02:07.9]}
19... Nf5 {[%clk 0:01:01]} 20. Bd2 {[%clk 0:01:54.3]} 20... Bb4 {[%clk
0:00:53.8]} 21. Rfe1+ {[%clk 0:01:47.4]} 21... Ne7 {[%clk 0:00:47.8]} 22. c3
{[%clk 0:01:09]} 22... Bd6 {[%clk 0:00:47.4]} 23. b4 {[%clk 0:00:53.7]} 23...
axb4 {[%clk 0:00:43.3]} 24. cxb4 {[%clk 0:00:25.8]} 24... Bxb4 {[%clk
0:00:44.2]} 25. Bxb4 {[%clk 0:00:26.1]} 25... Rxb4 {[%clk 0:00:44.7]} 26. Qe2
{[%clk 0:00:26.5]} 26... Kf8 {[%clk 0:00:37.2]} 27. Ra3 {[%clk 0:00:20.5]} 27...
Rh4 {[%clk 0:00:34]} 28. Re3 {[%clk 0:00:18.2]} 28... Rb7 {[%clk 0:00:28]} 29.
a5 {[%clk 0:00:10.3]} 29... Rxd4 {[%clk 0:00:26.7]} 30. a6 {[%clk 0:00:10.5]}
30... Ra7 {[%clk 0:00:27.2]} 31. Qb2 {[%clk 0:00:11]} 31... Re4 {[%clk
0:00:08.5]} 32. Bxe4 {[%clk 0:00:10.8]} 32... dxe4 {[%clk 0:00:09.4]} 33. Rxe4
{[%clk 0:00:11.3]} 33... Rxa6 {[%clk 0:00:01.6]} 34. Rxe7 {[%clk 0:00:09.5]}
34... Qxe7 {[%clk 0:00:02.5]} 35. Qb8+ {[%clk 0:00:09.2]} 35... Qe8 {[%clk
0:00:01.6]} 36. Qxe8# {[%clk 0:00:08.9]} 1-0

[Event "Late-Titled-Tuesday-Blitz-May-28-2024"]
[Site "Chess.com"]
[Date "2024.05.28"]
[Round "1"]
[White "HajiyevKanan"]
[Black "K_A_S_T_O_R"]
[Result "1/2-1/2"]
[WhiteElo "2480"]
[BlackElo "2845"]
[TimeControl "180+1"]
[EndTime "14:07:22 PDT"]
[Termination "Game drawn - insufficient material"]

1. d4 {[%clk 0:03:00.9]} 1... Nf6 {[%clk 0:02:59.3]} 2. Nf3 {[%clk 0:03:01.4]}
2... e6 {[%clk 0:02:59.5]} 3. c4 {[%clk 0:03:00.7]} 3... c5 {[%clk 0:02:59.3]}
4. e3 {[%clk 0:03:00.7]} 4... a6 {[%clk 0:02:57.8]} 5. Nc3 {[%clk 0:02:59.5]}
5... d5 {[%clk 0:02:56.6]} 6. cxd5 {[%clk 0:02:59.1]} 6... exd5 {[%clk 0:02:57]}
7. dxc5 {[%clk 0:02:57.7]} 7... Bxc5 {[%clk 0:02:57.3]} 8. Be2 {[%clk
0:02:58.1]} 8... O-O {[%clk 0:02:56.4]} 9. O-O {[%clk 0:02:58.7]} 9... Nc6
{[%clk 0:02:56.3]} 10. a3 {[%clk 0:02:58.7]} 10... Re8 {[%clk 0:02:53.8]} 11. b4
{[%clk 0:02:58.6]} 11... Ba7 {[%clk 0:02:53.9]} 12. Bb2 {[%clk 0:02:59.1]} 12...
Bg4 {[%clk 0:02:53.7]} 13. h3 {[%clk 0:02:58.2]} 13... Bh5 {[%clk 0:02:49.7]}
14. Nd4 {[%clk 0:02:55]} 14... Bxd4 {[%clk 0:02:30.7]} 15. Bxh5 {[%clk
0:02:50.6]} 15... Be5 {[%clk 0:02:24.9]} 16. Bf3 {[%clk 0:02:46.9]} 16... Qd6
{[%clk 0:02:18.5]} 17. Na4 {[%clk 0:02:43.1]} 17... Rad8 {[%clk 0:02:15.5]} 18.
Ra2 {[%clk 0:02:38.9]} 18... Bxb2 {[%clk 0:02:12.4]} 19. Rxb2 {[%clk 0:02:38.3]}
19... Ne5 {[%clk 0:02:11]} 20. Nc5 {[%clk 0:02:36.2]} 20... Qe7 {[%clk
0:02:05.7]} 21. Rd2 {[%clk 0:02:30.8]} 21... Nc4 {[%clk 0:02:05.6]} 22. Rd4
{[%clk 0:02:27.2]} 22... Nxa3 {[%clk 0:02:02.6]} 23. Bxd5 {[%clk 0:02:24.6]}
23... Nb5 {[%clk 0:02:02.3]} 24. Nxb7 {[%clk 0:01:39.6]} 24... Rxd5 {[%clk
0:01:56.1]} 25. Rxd5 {[%clk 0:01:23.3]} 25... Nc3 {[%clk 0:01:55.9]} 26. Qd3
{[%clk 0:01:13.1]} 26... Ncxd5 {[%clk 0:01:55.2]} 27. Qxa6 {[%clk 0:01:13]}
27... Nxb4 {[%clk 0:01:53.1]} 28. Qb6 {[%clk 0:00:38.9]} 28... Rb8 {[%clk
0:01:52.1]} 29. Rc1 {[%clk 0:00:39.1]} 29... g6 {[%clk 0:01:23.3]} 30. Rc7
{[%clk 0:00:20.1]} 30... Nfd5 {[%clk 0:01:20.6]} 31. Rxe7 {[%clk 0:00:20]} 31...
Nxb6 {[%clk 0:01:21.1]} 32. Nd6 {[%clk 0:00:20]} 32... N4d5 {[%clk 0:01:16.6]}
33. Rxf7 {[%clk 0:00:17.4]} 33... Rd8 {[%clk 0:01:16.1]} 34. Nb7 {[%clk
0:00:17.5]} 34... Kxf7 {[%clk 0:01:10.2]} 35. Nxd8+ {[%clk 0:00:17.8]} 35... Kf6
{[%clk 0:01:10.8]} 36. Nc6 {[%clk 0:00:18.2]} 36... Nc4 {[%clk 0:01:10.1]} 37.
Nd4 {[%clk 0:00:17.9]} 37... Nd6 {[%clk 0:01:10]} 38. g3 {[%clk 0:00:18.5]}
38... Nf5 {[%clk 0:01:10]} 39. Ne2 {[%clk 0:00:14.9]} 39... Nd6 {[%clk
0:01:09.5]} 40. Kg2 {[%clk 0:00:15.2]} 40... Ne4 {[%clk 0:01:10.1]} 41. Nd4
{[%clk 0:00:15]} 41... Ndc3 {[%clk 0:01:07.9]} 42. Nf3 {[%clk 0:00:15.1]} 42...
g5 {[%clk 0:01:06.5]} 43. Nd4 {[%clk 0:00:13.2]} 43... Nd2 {[%clk 0:01:05.7]}
44. f3 {[%clk 0:00:06.6]} 44... Nd1 {[%clk 0:01:04.9]} 45. e4 {[%clk 0:00:07.2]}
45... Ke5 {[%clk 0:01:04.7]} 46. Nc6+ {[%clk 0:00:07]} 46... Kf6 {[%clk
0:01:04.2]} 47. Nd4 {[%clk 0:00:07.9]} 47... Nc3 {[%clk 0:01:03.1]} 48. Kf2
{[%clk 0:00:06.7]} 48... Nc4 {[%clk 0:01:03]} 49. Nc6 {[%clk 0:00:06.6]} 49...
Ne5 {[%clk 0:01:00.2]} 50. Nd4 {[%clk 0:00:06.7]} 50... Na4 {[%clk 0:00:57.5]}
51. Ke2 {[%clk 0:00:06.6]} 51... Nc5 {[%clk 0:00:56.8]} 52. Kf2 {[%clk
0:00:06.1]} 52... Ng6 {[%clk 0:00:56.8]} 53. Ke3 {[%clk 0:00:06.1]} 53... h5
{[%clk 0:00:57.1]} 54. Nf5 {[%clk 0:00:06.6]} 54... h4 {[%clk 0:00:57]} 55. gxh4
{[%clk 0:00:06.7]} 55... Nxh4 {[%clk 0:00:55.5]} 56. Nxh4 {[%clk 0:00:07.1]}
56... gxh4 {[%clk 0:00:55.9]} 57. Kf4 {[%clk 0:00:08]} 57... Nd3+ {[%clk
0:00:53]} 58. Kg4 {[%clk 0:00:08.4]} 58... Ne5+ {[%clk 0:00:53.2]} 59. Kxh4
{[%clk 0:00:08.9]} 59... Nxf3+ {[%clk 0:00:53.8]} 60. Kg3 {[%clk 0:00:09.4]}
60... Ng5 {[%clk 0:00:53.5]} 61. e5+ {[%clk 0:00:09.2]} 61... Kxe5 {[%clk
0:00:53.4]} 62. h4 {[%clk 0:00:09.9]} 62... Kf5 {[%clk 0:00:53.6]} 63. hxg5
{[%clk 0:00:10]} 63... Kxg5 {[%clk 0:00:54.3]} 1/2-1/2

[Event "Late-Titled-Tuesday-Blitz-May-28-2024"]
[Site "Chess.com"]
[Date "2024.05.28"]
[Round "1"]
[White "NikitaShnadrygin"]
[Black "Kielinkei"]
[Result "1-0"]
[WhiteElo "2752"]
[BlackElo "2435"]
[TimeControl "180+1"]
[EndTime "14:07:24 PDT"]
[Termination "NikitaShnadrygin won by resignation"]

1. e4 {[%clk 0:03:00.9]} 1... c5 {[%clk 0:03:00]} 2. b4 {[%clk 0:03:00.2]} 2...
cxb4 {[%clk 0:02:59.3]} 3. a3 {[%clk 0:03:00.6]} 3... d5 {[%clk 0:02:54.1]} 4.
exd5 {[%clk 0:03:01.2]} 4... Qxd5 {[%clk 0:02:53.4]} 5. Nf3 {[%clk 0:03:01.6]}
5... e6 {[%clk 0:02:47.6]} 6. axb4 {[%clk 0:03:01.6]} 6... Bxb4 {[%clk
0:02:47.1]} 7. c3 {[%clk 0:03:02.2]} 7... Be7 {[%clk 0:02:43.9]} 8. d4 {[%clk
0:02:58.8]} 8... Nf6 {[%clk 0:02:43.2]} 9. Bd3 {[%clk 0:02:58.8]} 9... O-O
{[%clk 0:02:43.1]} 10. O-O {[%clk 0:02:59.1]} 10... Nc6 {[%clk 0:02:43.5]} 11.
Na3 {[%clk 0:02:58.7]} 11... b6 {[%clk 0:02:33.8]} 12. Nb5 {[%clk 0:02:49.1]}
12... Qd8 {[%clk 0:02:30.8]} 13. Qe2 {[%clk 0:02:38.2]} 13... Bb7 {[%clk
0:02:23.7]} 14. Re1 {[%clk 0:02:38]} 14... a6 {[%clk 0:02:21.6]} 15. Na3 {[%clk
0:02:38.3]} 15... g6 {[%clk 0:02:13.9]} 16. Ng5 {[%clk 0:02:20.2]} 16... b5
{[%clk 0:01:52.9]} 17. Nc2 {[%clk 0:02:19.2]} 17... Bd6 {[%clk 0:01:31.8]} 18.
Bd2 {[%clk 0:02:12.4]} 18... Ne7 {[%clk 0:01:31]} 19. Nf3 {[%clk 0:01:50.4]}
19... Ned5 {[%clk 0:01:22.4]} 20. Ne5 {[%clk 0:01:45.9]} 20... Rc8 {[%clk
0:01:20.3]} 21. c4 {[%clk 0:01:46.4]} 21... bxc4 {[%clk 0:01:17.8]} 22. Bxc4
{[%clk 0:01:44.5]} 22... Qc7 {[%clk 0:00:53.6]} 23. Ba5 {[%clk 0:01:27.1]} 23...
Qe7 {[%clk 0:00:48.7]} 24. Ne3 {[%clk 0:01:17.8]} 24... Nf4 {[%clk 0:00:47.7]}
25. Qf1 {[%clk 0:01:17.3]} 25... N6d5 {[%clk 0:00:40.5]} 26. Bxa6 {[%clk
0:01:10.8]} 26... Bxa6 {[%clk 0:00:17.5]} 27. Qxa6 {[%clk 0:01:11.7]} 27... Ra8
{[%clk 0:00:16.7]} 28. Qf1 {[%clk 0:01:04.9]} 28... Rfc8 {[%clk 0:00:16.3]} 29.
N3c4 {[%clk 0:01:02.7]} 29... Bb4 {[%clk 0:00:13.6]} 30. Bxb4 {[%clk 0:00:57.2]}
30... Nxb4 {[%clk 0:00:14]} 31. Rxa8 {[%clk 0:00:51.6]} 31... Rxa8 {[%clk
0:00:14.3]} 32. Rb1 {[%clk 0:00:49]} 32... Nbd5 {[%clk 0:00:12.7]} 33. g3 {[%clk
0:00:43.5]} 33... Nh5 {[%clk 0:00:11.9]} 34. Nc6 {[%clk 0:00:43.8]} 34... Qc7
{[%clk 0:00:10.7]} 35. N6e5 {[%clk 0:00:31.9]} 35... Nhf6 {[%clk 0:00:10.8]} 36.
Qe2 {[%clk 0:00:30]} 36... Rc8 {[%clk 0:00:10.8]} 37. Qf3 {[%clk 0:00:25.8]}
37... Nd7 {[%clk 0:00:08.4]} 38. Qxf7+ {[%clk 0:00:23.6]} 38... Kh8 {[%clk
0:00:08.1]} 39. Qxe6 {[%clk 0:00:20.5]} 39... Nxe5 {[%clk 0:00:06.9]} 40. Nxe5
{[%clk 0:00:21.4]} 40... Nc3 {[%clk 0:00:06.1]} 41. Re1 {[%clk 0:00:19.9]} 41...
Qg7 {[%clk 0:00:05.9]} 42. Nf7+ {[%clk 0:00:19.4]} 42... Kg8 {[%clk 0:00:06.3]}
43. Nd6+ {[%clk 0:00:19]} 1-0

[Event "Late-Titled-Tuesday-Blitz-May-28-2024"]
[Site "Chess.com"]
[Date "2024.05.28"]
[Round "1"]
[White "sergiochess83"]
[Black "McCarthyStone"]
[Result "1-0"]
[WhiteElo "2884"]
[BlackElo "2483"]
[TimeControl "180+1"]
[EndTime "14:07:26 PDT"]
[Termination "sergiochess83 won on time"]

1. d4 {[%clk 0:02:50.6]} 1... d6 {[%clk 0:02:58.5]} 2. e4 {[%clk 0:02:49.6]}
2... Nf6 {[%clk 0:02:59.1]} 3. Nc3 {[%clk 0:02:48.1]} 3... e5 {[%clk 0:02:58]}
4. Nf3 {[%clk 0:02:47]} 4... exd4 {[%clk 0:02:58.4]} 5. Nxd4 {[%clk 0:02:46.2]}
5... g6 {[%clk 0:02:59.1]} 6. Bf4 {[%clk 0:02:46.1]} 6... Bg7 {[%clk 0:02:59.1]}
7. Qd2 {[%clk 0:02:46.2]} 7... Nc6 {[%clk 0:02:59.1]} 8. Nb3 {[%clk 0:02:20.1]}
8... a5 {[%clk 0:02:56.1]} 9. a4 {[%clk 0:02:12.1]} 9... O-O {[%clk 0:02:55.9]}
10. O-O-O {[%clk 0:02:08.7]} 10... Re8 {[%clk 0:02:49.7]} 11. f3 {[%clk
0:02:08.9]} 11... Be6 {[%clk 0:02:42.9]} 12. Kb1 {[%clk 0:02:01.7]} 12... Nb4
{[%clk 0:02:38.3]} 13. Nd4 {[%clk 0:01:54.9]} 13... Bd7 {[%clk 0:02:36.1]} 14.
Bh6 {[%clk 0:01:53.1]} 14... Bh8 {[%clk 0:02:30]} 15. Bc4 {[%clk 0:01:49.4]}
15... c6 {[%clk 0:02:25.1]} 16. Bb3 {[%clk 0:01:47.6]} 16... b5 {[%clk 0:02:18]}
17. axb5 {[%clk 0:01:39.4]} 17... a4 {[%clk 0:01:59.2]} 18. Nxa4 {[%clk
0:01:36.2]} 18... c5 {[%clk 0:01:59]} 19. Nf5 {[%clk 0:01:24.5]} 19... Bxb5
{[%clk 0:01:46.5]} 20. Nxd6 {[%clk 0:01:19.7]} 20... c4 {[%clk 0:00:51.2]} 21.
Qxb4 {[%clk 0:01:18.5]} 21... cxb3 {[%clk 0:00:42.3]} 22. Nxb5 {[%clk
0:01:10.1]} 22... bxc2+ {[%clk 0:00:40.2]} 23. Kxc2 {[%clk 0:01:10.3]} 23...
Qc8+ {[%clk 0:00:23.6]} 24. Nac3 {[%clk 0:01:06.7]} 24... Re5 {[%clk 0:00:16.3]}
25. Bf4 {[%clk 0:00:55.6]} 25... Rc5 {[%clk 0:00:15.9]} 26. Rd8+ {[%clk
0:00:53.5]} 26... Qxd8 {[%clk 0:00:14.2]} 27. Qxc5 {[%clk 0:00:54.1]} 27... Rc8
{[%clk 0:00:14.5]} 28. Qb4 {[%clk 0:00:41.3]} 28... Qb6 {[%clk 0:00:12.6]} 29.
Rd1 {[%clk 0:00:38.9]} 29... Nh5 {[%clk 0:00:05.6]} 30. Bc1 {[%clk 0:00:15.5]}
30... Bg7 {[%clk 0:00:03.6]} 31. Kb1 {[%clk 0:00:10.8]} 31... Bf8 {[%clk
0:00:01.9]} 32. Qd4 {[%clk 0:00:10.1]} 32... Qa5 {[%clk 0:00:02.5]} 33. Qa4
{[%clk 0:00:09]} 33... Qb6 {[%clk 0:00:02.4]} 34. Nd5 {[%clk 0:00:08.5]} 34...
Qf2 {[%clk 0:00:01.2]} 35. g4 {[%clk 0:00:07.2]} 35... Ng7 {[%clk 0:00:00.9]}
36. Qb3 {[%clk 0:00:04.8]} 1-0

[Event "Late-Titled-Tuesday-Blitz-May-28-2024"]
[Site "Chess.com"]
[Date "2024.05.28"]
[Round "1"]
[White "carloseduar100"]
[Black "subham777"]
[Result "1-0"]
[WhiteElo "2295"]
[BlackElo "2581"]
[TimeControl "180+1"]
[EndTime "14:07:26 PDT"]
[Termination "carloseduar100 won by resignation"]

1. d4 {[%clk 0:02:56.7]} 1... d5 {[%clk 0:02:58.1]} 2. c3 {[%clk 0:02:52.5]}
2... Nf6 {[%clk 0:02:56.1]} 3. Bg5 {[%clk 0:02:50.9]} 3... e6 {[%clk 0:02:55.2]}
4. Nd2 {[%clk 0:02:48.8]} 4... Be7 {[%clk 0:02:54.9]} 5. e3 {[%clk 0:02:48]}
5... O-O {[%clk 0:02:54.8]} 6. Bd3 {[%clk 0:02:37.7]} 6... b6 {[%clk 0:02:54]}
7. f4 {[%clk 0:02:37.8]} 7... Bb7 {[%clk 0:02:54]} 8. Ngf3 {[%clk 0:02:37.9]}
8... c5 {[%clk 0:02:52.7]} 9. Ne5 {[%clk 0:02:37.9]} 9... Ne4 {[%clk 0:02:51.7]}
10. Bxe7 {[%clk 0:02:34.9]} 10... Qxe7 {[%clk 0:02:51.2]} 11. O-O {[%clk
0:02:33.6]} 11... f6 {[%clk 0:02:48.8]} 12. Nef3 {[%clk 0:02:10]} 12... Nd7
{[%clk 0:02:44.1]} 13. Rc1 {[%clk 0:02:07.7]} 13... Rac8 {[%clk 0:02:41.8]} 14.
Bb1 {[%clk 0:02:06.6]} 14... Rfd8 {[%clk 0:02:40.7]} 15. Qe2 {[%clk 0:02:06.5]}
15... a6 {[%clk 0:02:34.2]} 16. g4 {[%clk 0:02:06.8]} 16... b5 {[%clk
0:02:33.3]} 17. g5 {[%clk 0:02:06.8]} 17... f5 {[%clk 0:02:32.2]} 18. h4 {[%clk
0:02:05.9]} 18... b4 {[%clk 0:02:26.8]} 19. cxb4 {[%clk 0:02:03]} 19... cxb4
{[%clk 0:02:27]} 20. Kg2 {[%clk 0:01:57.5]} 20... Nb6 {[%clk 0:02:18.3]} 21.
Bxe4 {[%clk 0:01:53.7]} 21... dxe4 {[%clk 0:02:18]} 22. Ne5 {[%clk 0:01:54.6]}
22... Na4 {[%clk 0:02:12.5]} 23. Ndc4 {[%clk 0:01:47.2]} 23... Bd5 {[%clk
0:02:09]} 24. Qc2 {[%clk 0:01:45.3]} 24... Nb6 {[%clk 0:01:57.7]} 25. b3 {[%clk
0:01:41.1]} 25... a5 {[%clk 0:01:47.6]} 26. Kg3 {[%clk 0:01:40.9]} 26... Qe8
{[%clk 0:01:41.8]} 27. Qe2 {[%clk 0:01:34.8]} 27... Qb5 {[%clk 0:01:37.8]} 28.
Rc2 {[%clk 0:01:29.9]} 28... a4 {[%clk 0:01:29.5]} 29. Rfc1 {[%clk 0:01:30]}
29... axb3 {[%clk 0:01:24.9]} 30. axb3 {[%clk 0:01:30.9]} 30... Qa6 {[%clk
0:01:03.2]} 31. Qh5 {[%clk 0:01:27.8]} 31... Rf8 {[%clk 0:00:52.3]} 32. Nxb6
{[%clk 0:01:24.5]} 32... Rxc2 {[%clk 0:00:50.7]} 33. Rxc2 {[%clk 0:01:24.8]}
33... Bxb3 {[%clk 0:00:34.6]} 34. Nbd7 {[%clk 0:01:02.4]} 34... Qf1 {[%clk
0:00:14.4]} 35. Nxf8 {[%clk 0:00:51]} 35... Qg1+ {[%clk 0:00:12.5]} 36. Rg2
{[%clk 0:00:51.4]} 36... Qxe3+ {[%clk 0:00:12.4]} 37. Kh2 {[%clk 0:00:52.1]}
37... Qxf4+ {[%clk 0:00:12.6]} 38. Kh3 {[%clk 0:00:48.1]} 38... Qxe5 {[%clk
0:00:04.3]} 39. dxe5 {[%clk 0:00:45.1]} 39... Kxf8 {[%clk 0:00:04.7]} 40. Qxh7
{[%clk 0:00:43.4]} 40... e3 {[%clk 0:00:03.3]} 41. Qh8+ {[%clk 0:00:41]} 41...
Kf7 {[%clk 0:00:03.2]} 42. g6+ {[%clk 0:00:41.4]} 42... Ke7 {[%clk 0:00:03.7]}
43. Qxg7+ {[%clk 0:00:42]} 43... Kd8 {[%clk 0:00:04.4]} 44. Qa7 {[%clk
0:00:35.2]} 44... Bd5 {[%clk 0:00:03.1]} 45. g7 {[%clk 0:00:34.6]} 1-0

[Event "Late-Titled-Tuesday-Blitz-May-28-2024"]
[Site "Chess.com"]
[Date "2024.05.28"]
[Round "1"]
[White "Iball95"]
[Black "Engima32"]
[Result "1-0"]
[WhiteElo "2855"]
[BlackElo "2472"]
[TimeControl "180+1"]
[EndTime "14:07:28 PDT"]
[Termination "Iball95 won by resignation"]

1. e4 {[%clk 0:03:00.9]} 1... c5 {[%clk 0:02:49]} 2. Nf3 {[%clk 0:03:01.2]} 2...
d6 {[%clk 0:02:48.6]} 3. Nc3 {[%clk 0:03:01.5]} 3... Nf6 {[%clk 0:02:48.3]} 4.
d4 {[%clk 0:03:02]} 4... cxd4 {[%clk 0:02:49]} 5. Qxd4 {[%clk 0:03:02.3]} 5...
Nc6 {[%clk 0:02:49]} 6. Bb5 {[%clk 0:03:02.8]} 6... Bd7 {[%clk 0:02:48.3]} 7.
Bxc6 {[%clk 0:03:03.2]} 7... Bxc6 {[%clk 0:02:49.2]} 8. Bg5 {[%clk 0:03:02.7]}
8... e6 {[%clk 0:02:48.5]} 9. O-O-O {[%clk 0:03:03.2]} 9... Be7 {[%clk
0:02:48.9]} 10. Rhe1 {[%clk 0:03:03.4]} 10... O-O {[%clk 0:02:48.9]} 11. e5
{[%clk 0:03:03.9]} 11... dxe5 {[%clk 0:02:49.8]} 12. Nxe5 {[%clk 0:03:03.6]}
12... Qxd4 {[%clk 0:02:46.1]} 13. Rxd4 {[%clk 0:03:04.5]} 13... Rac8 {[%clk
0:02:43.9]} 14. Nxc6 {[%clk 0:03:04]} 14... Rxc6 {[%clk 0:02:44.8]} 15. Ne4
{[%clk 0:03:03.8]} 15... Rfc8 {[%clk 0:02:36.3]} 16. Re2 {[%clk 0:03:03.2]}
16... Nd5 {[%clk 0:02:08.3]} 17. Bxe7 {[%clk 0:03:02]} 17... Nxe7 {[%clk
0:02:09.2]} 18. Rd7 {[%clk 0:03:01.8]} 18... R6c7 {[%clk 0:02:05.4]} 19. Red2
{[%clk 0:03:00.1]} 19... Nc6 {[%clk 0:02:05.1]} 20. Nc5 {[%clk 0:02:41.5]} 20...
b6 {[%clk 0:01:49.5]} 21. Na6 {[%clk 0:02:27.5]} 21... Rxd7 {[%clk 0:01:49.5]}
22. Rxd7 {[%clk 0:02:28.2]} 22... Kf8 {[%clk 0:01:49.5]} 23. a3 {[%clk
0:02:17.6]} 23... Ke8 {[%clk 0:01:40.7]} 24. Rb7 {[%clk 0:02:16.6]} 24... h5
{[%clk 0:01:37.8]} 25. Nb4 {[%clk 0:02:16.3]} 25... a5 {[%clk 0:01:30.8]} 26.
Nxc6 {[%clk 0:02:09.7]} 26... Rxc6 {[%clk 0:01:31.7]} 27. Kd2 {[%clk 0:02:04.1]}
27... g5 {[%clk 0:01:31.6]} 28. b3 {[%clk 0:02:02.1]} 28... Kf8 {[%clk
0:01:31.1]} 29. Kd3 {[%clk 0:01:59.6]} 29... Kg7 {[%clk 0:01:31]} 30. c4 {[%clk
0:01:57.7]} 30... e5 {[%clk 0:01:26.2]} 31. b4 {[%clk 0:01:56.2]} 31... axb4
{[%clk 0:01:25.4]} 32. axb4 {[%clk 0:01:57.1]} 32... Kf6 {[%clk 0:01:25.5]} 33.
f3 {[%clk 0:01:31.3]} 33... Ke6 {[%clk 0:01:22.2]} 34. Kc3 {[%clk 0:01:21.5]}
34... f6 {[%clk 0:01:17.5]} 35. b5 {[%clk 0:01:15.5]} 35... Rd6 {[%clk
0:01:17.7]} 36. Rc7 {[%clk 0:01:15.7]} 36... g4 {[%clk 0:01:13.6]} 37. c5 {[%clk
0:01:11.7]} 37... bxc5 {[%clk 0:01:13.4]} 38. Rxc5 {[%clk 0:01:12.6]} 38... gxf3
{[%clk 0:01:10.9]} 39. gxf3 {[%clk 0:01:13.5]} 39... Kf5 {[%clk 0:01:11.3]} 40.
Rc4 {[%clk 0:01:11]} 40... Rd1 {[%clk 0:01:01.7]} 41. b6 {[%clk 0:01:09.9]}
41... Rc1+ {[%clk 0:01:01.5]} 42. Kb4 {[%clk 0:01:09.4]} 42... Rb1+ {[%clk
0:01:01.6]} 43. Kc5 {[%clk 0:01:09.6]} 43... Rb2 {[%clk 0:00:48.1]} 44. Rb4
{[%clk 0:01:06.7]} 44... Rc2+ {[%clk 0:00:44.2]} 45. Kd6 {[%clk 0:01:06.1]}
45... Rd2+ {[%clk 0:00:44.5]} 46. Ke7 {[%clk 0:01:02.2]} 46... Rg2 {[%clk
0:00:35.1]} 47. b7 {[%clk 0:00:50.9]} 47... Rg8 {[%clk 0:00:33]} 48. Kd6 {[%clk
0:00:51.5]} 48... Kg5 {[%clk 0:00:24.8]} 49. b8=Q {[%clk 0:00:41.9]} 49... Rxb8
{[%clk 0:00:24.7]} 50. Rxb8 {[%clk 0:00:42.3]} 50... Kf4 {[%clk 0:00:25.4]} 51.
Rf8 {[%clk 0:00:38.3]} 51... f5 {[%clk 0:00:17]} 52. Ke6 {[%clk 0:00:37.8]}
52... Kxf3 {[%clk 0:00:17.4]} 53. Kxe5 {[%clk 0:00:36.4]} 53... h4 {[%clk
0:00:16]} 54. Kxf5 {[%clk 0:00:32.7]} 54... Kg2 {[%clk 0:00:15.2]} 55. Kg4
{[%clk 0:00:32.4]} 55... h3 {[%clk 0:00:15.6]} 56. Ra8 {[%clk 0:00:32.1]} 56...
Kxh2 {[%clk 0:00:15.6]} 57. Ra2+ {[%clk 0:00:32.2]} 1-0